fUSD/lending_fUSD_20240119
["ID","MTS","AMOUNT","RATE_DAILY","PERIOD"]
[312128786,1705661438838,-576.59,0.00022999,2]
[312128787,1705661438850,-954.0,0.00023,2]
[312128788,1705661438862,-726439.08465961,0.00023,3]
[312128789,1705661438873,-1532426.50262703,0.00023,2]
[312128790,1705661438885,-367725.87317811,0.00023,2]
[312128791,1705661438904,-600825.22626349,0.00023,2]
[312128792,1705661438916,-500.0,0.00023,2]
[312128793,1705661438927,-275.5,0.00023,2]
[312128794,1705661438939,-159.25,0.00023011,2]
[312128795,1705661438955,-3009.0,0.00023014,3]
[312128796,1705661438967,-366.0,0.00023075,2]
[312128797,1705661438978,-158.5,0.00023101,2]
[312128798,1705661438989,-26528.17731491,0.00023148,2]
[312128799,1705661439009,-150.47,0.00023233,2]
[312128800,1705661439028,-429.36,0.00023245,2]
[312128801,1705661439042,-366.0,0.00023249,2]
[312128802,1705661439056,-1367.98236126,0.0002325,2]
[312128803,1705661439068,-189.37054978,0.00023275,2]
[312128804,1705661439080,-5006.0,0.00023288,4]
[312128805,1705661439091,-158.5,0.00023306,2]
[312128806,1705661439103,-159.25,0.0002333,2]
[312128807,1705661439119,-154.79,0.00023333,2]
[312128808,1705661439139,-353.25,0.00023417,2]
[312128809,1705661439152,-366.0,0.00023423,2]
[312128810,1705661439162,-158.5,0.00023511,2]
[312128811,1705661439174,-170.19,0.00023523,2]
[312128812,1705661439186,-366.0,0.00023597,2]
[312128813,1705661439197,-157.78,0.0002363,2]
[312128814,1705661439211,-159.25,0.00023649,2]
[312128815,1705661439226,-180.0,0.00023653,2]
[312128816,1705661439288,-161.12,0.00023676,2]
[312128817,1705661439300,-158.5,0.00023716,2]
[312128818,1705661439313,-366.0,0.0002377,2]
[312128819,1705661439328,-500.0,0.0002389,2]
[312128820,1705661439344,-1840.65355859,0.000239,2]
[312128821,1705661439357,-158.5,0.00023921,2]
[312128822,1705661439371,-366.0,0.00023944,2]
[312128823,1705661439383,-159.25,0.00023968,2]
[312128824,1705661439395,-201.16205573,0.00024,2]
[312128825,1705661439406,-431.59040182,0.00024,2]
[312128826,1705661439418,-155.49650287,0.00024,2]
[312128827,1705661439435,-2000.0,0.00024,2]
[312128828,1705661439450,-600.0,0.00024,3]
[312128829,1705661439467,-277.292105,0.00024,2]
[312128830,1705661439480,-150.47,0.00024044,2]
[312128831,1705661439492,-429.36,0.00024046,2]
[312128832,1705661439504,-300.21409178,0.000241,2]
[312128833,1705661439515,-3471.0,0.000241,2]
[312128834,1705661439526,-35403.0,0.000241,2]
[312128835,1705661439546,-366.0,0.00024118,2]
[312128836,1705661439558,-158.5,0.00024126,2]
[312128837,1705661439575,-387.69,0.00024177,2]
[312128838,1705661439588,-154.79,0.00024208,2]
[312128839,1705661439600,-500.0,0.00024275,2]
[312128840,1705661439612,-159.25,0.00024287,2]
[312128841,1705661439624,-366.0,0.00024292,2]
[312128842,1705661439635,-167.0,0.00024297,2]
[312128843,1705661439648,-167.0,0.00024297,2]
[312128844,1705661439660,-158.5,0.00024331,2]
[312128845,1705661439682,-204.0,0.00024348,7]
[312128846,1705661439694,-353.25,0.00024395,2]
[312128847,1705661439706,-366.0,0.00024466,2]
[312128848,1705661439718,-158.5,0.00024536,2]
[312128849,1705661439729,-170.19,0.00024592,2]
[312128850,1705661439741,-159.25,0.00024606,2]
[312128851,1705661439754,-366.0,0.0002464,2]
[312128852,1705661439767,-200.0,0.00024658,2]
[312128853,1705661439779,-250.0,0.00024658,2]
[312128854,1705661439795,-150.0,0.00024658,2]
[312128855,1705661439808,-150.0,0.00024658,2]
[312128856,1705661439821,-150.0,0.00024658,2]
[312128857,1705661439833,-150.0,0.00024658,2]
[312128858,1705661439844,-150.0,0.00024658,2]
[312128859,1705661439862,-150.0,0.00024658,2]
[312128860,1705661439876,-150.0,0.00024658,2]
[312128861,1705661439887,-150.0,0.00024658,2]
[312128862,1705661439905,-150.0,0.00024658,2]
[312128863,1705661439919,-150.0,0.00024658,2]
[312128864,1705661439931,-150.0,0.00024658,2]
[312128865,1705661439943,-150.0,0.00024658,2]
[312128866,1705661439955,-150.0,0.00024658,2]
[312128867,1705661439968,-150.0,0.00024658,2]
[312128868,1705661439982,-150.0,0.00024658,2]
[312128869,1705661439994,-150.0,0.00024658,2]
[312128870,1705661440009,-150.0,0.00024658,2]
[312128871,1705661440023,-150.0,0.00024658,2]
[312128873,1705661440035,-150.0,0.00024658,2]
[312128875,1705661440046,-152.64182422,0.00024658,2]
[312128877,1705661440057,-158.5,0.00024741,2]
[312128879,1705661440076,-612.31,0.00024768,2]
[312128881,1705661440088,-500.0,0.00024795,2]
[312128883,1705661440101,-366.0,0.00024814,2]
[312128885,1705661440117,-429.36,0.00024847,2]
[312128886,1705661440132,-150.47,0.00024854,2]
[312128887,1705661440144,-1840.65355859,0.000249,2]
[312128888,1705661440155,-159.25,0.00024926,2]
[312128889,1705661440166,-158.5,0.00024946,2]
[312128890,1705661440183,-366.0,0.00024988,2]
[312128891,1705661440196,-836.0,0.00024994,2]
[312128892,1705661440209,-1250.0,0.00024994,2]
[312128893,1705661440223,-1233.0,0.00024994,2]
[312128894,1705661440239,-319.945,0.00024994,2]
[312128895,1705661440251,-426.0,0.00024994,2]
[312128896,1705661440263,-254.538,0.00024994,2]
[312128897,1705661440274,-153.201,0.00024994,2]
[312128901,1705661440703,-2274.0,0.00024994,2]
[312128902,1705661440717,-6905.07315436,0.00025,4]
[312128903,1705661440730,-534.07785177,0.00025,2]
[312128904,1705661440744,-1584.35924632,0.00025,2]
[312128905,1705661440757,-202.05640348,0.00025,2]
[312128906,1705661440771,-303.51189486,0.00025,2]
[312128907,1705661440784,-158.69157594,0.00025,2]
[312128908,1705661440795,-307.5946143,0.00025,5]
[312128909,1705661440806,-933.81243155,0.00025,2]
[312128910,1705661440821,-167.40543921,0.00025,2]
[312128911,1705661440834,-2004.75702552,0.00025,2]
[312128912,1705661440846,-1249.1438969,0.00025,2]
[312128913,1705661440861,-22624.44515743,0.00025,2]
[312128914,1705661440876,-2000.0,0.00025,2]
[312128915,1705661440891,-154.79,0.00025083,2]
[312128916,1705661440902,-154.57593043,0.0002515,2]
[312128917,1705661440913,-158.5,0.00025151,2]
[312128918,1705661441366,-366.0,0.00025162,2]
[312128919,1705661441379,-159.25,0.00025245,2]
[312128920,1705661441394,-366.0,0.00025336,2]
[312128921,1705661441406,-353.25,0.00025374,2]
[312128922,1705661441419,-159.25,0.00025564,2]
[312128923,1705661441430,-167.0,0.00025633,2]
[312128924,1705661441441,-500.0,0.00025699,2]
[312128925,1705661441462,-156.37,0.00025709,2]
[312128926,1705661441476,-160.19,0.00025724,2]
[312128927,1705661441488,-159.25,0.00025883,2]
[312128928,1705661441503,-1840.65355859,0.000259,2]
[312128929,1705661441515,-161.12,0.00025903,2]
[312128930,1705661441527,-154.79,0.00025958,2]
[312128931,1705661441538,-2000.0,0.00026,2]
[312128932,1705661441550,-650.0,0.00026,3]
[312128933,1705661441571,-650.0,0.00026,2]
[312128934,1705661441584,-500.0,0.00026,2]
[312128935,1705661441595,-183.70104796,0.00026,2]
[312128937,1705661441826,-183.70104796,0.00026,2]
[312128938,1705661441839,-183.70104796,0.00026,2]
[312128939,1705661441850,-183.70104796,0.00026,2]
[312128940,1705661441863,-183.70104796,0.00026,2]
[312128941,1705661441875,-183.70104796,0.00026,2]
[312128942,1705661441886,-183.70104796,0.00026,2]
[312128943,1705661441901,-183.70104796,0.00026,2]
[312128944,1705661441917,-183.70104796,0.00026,2]
[312128945,1705661441934,-183.70104796,0.00026,2]
[312128946,1705661441949,-183.70104796,0.00026,2]
[312128947,1705661441961,-183.70104796,0.00026,2]
[312128948,1705661441972,-183.70104796,0.00026,2]
[312128949,1705661441984,-183.70104796,0.00026,2]
[312128950,1705661441995,-183.70104796,0.00026,2]
[312128951,1705661442007,-183.70104796,0.00026,2]
[312128952,1705661442023,-183.70104796,0.00026,2]
[312128953,1705661442043,-183.70104796,0.00026,2]
[312128954,1705661442059,-183.70104796,0.00026,2]
[312128955,1705661442070,-183.70104796,0.00026,2]
[312128956,1705661442081,-183.70104796,0.00026,2]
[312128957,1705661442093,-183.70104796,0.00026,2]
[312128958,1705661442114,-183.70104796,0.00026,2]
[312128959,1705661442131,-183.70104796,0.00026,2]
[312128960,1705661442152,-183.70104796,0.00026,2]
[312128961,1705661442165,-183.70104796,0.00026,2]
[312128962,1705661442179,-183.70104796,0.00026,2]
[312128963,1705661442191,-183.70104796,0.00026,2]
[312128964,1705661442204,-183.70104796,0.00026,2]
[312128965,1705661442218,-183.70104796,0.00026,2]
[312128966,1705661442230,-183.70104796,0.00026,2]
[312128967,1705661442242,-183.70104796,0.00026,2]
[312128968,1705661442256,-183.70104796,0.00026,2]
[312128969,1705661442268,-183.70104796,0.00026,2]
[312128970,1705661442280,-183.70104796,0.00026,2]
[312128971,1705661442292,-183.70104796,0.00026,2]
[312128972,1705661442303,-183.70104796,0.00026,2]
[312128973,1705661442314,-183.70104796,0.00026,2]
[312128974,1705661442542,-183.70104796,0.00026,2]
[312128975,1705661442554,-183.70104796,0.00026,2]
[312128976,1705661442566,-183.70104796,0.00026,2]
[312128977,1705661442580,-183.70104796,0.00026,2]
[312128978,1705661442594,-183.70104796,0.00026,2]
[312128979,1705661442605,-183.70104796,0.00026,2]
[312128980,1705661442618,-183.70104796,0.00026,2]
[312128981,1705661442630,-183.70104796,0.00026,2]
[312128982,1705661442645,-183.70104796,0.00026,2]
[312128983,1705661442818,-183.70104796,0.00026,2]
[312128984,1705661442830,-183.70104796,0.00026,2]
[312128985,1705661442841,-183.70104796,0.00026,2]
[312128986,1705661442855,-183.70104796,0.00026,2]
[312128987,1705661442867,-183.70104796,0.00026,2]
[312128988,1705661442880,-183.70104796,0.00026,2]
[312128989,1705661442899,-183.70104796,0.00026,2]
[312128990,1705661442913,-183.70104796,0.00026,2]
[312128991,1705661442925,-183.70104796,0.00026,2]
[312128992,1705661442935,-183.70104796,0.00026,2]
[312128994,1705661442946,-183.70104796,0.00026,2]
[312128996,1705661442962,-183.70104796,0.00026,2]
[312128998,1705661442975,-183.70104796,0.00026,2]
[312129000,1705661442987,-183.70104796,0.00026,2]
[312129003,1705661443005,-183.70104796,0.00026,2]
[312129006,1705661443018,-183.70104796,0.00026,2]
[312129009,1705661443031,-183.70104796,0.00026,2]
[312129010,1705661443043,-183.70104796,0.00026,2]
[312129012,1705661443054,-183.70104796,0.00026,2]
[312129015,1705661443068,-183.70104796,0.00026,2]
[312129017,1705661443081,-183.70104796,0.00026,2]
[312129019,1705661443092,-183.70104796,0.00026,2]
[312129021,1705661443112,-183.70104796,0.00026,2]
[312129023,1705661443130,-183.70104796,0.00026,2]
[312129025,1705661443142,-183.70104796,0.00026,2]
[312129026,1705661443155,-183.70104796,0.00026,2]
[312129027,1705661443166,-183.70104796,0.00026,2]
[312129028,1705661443610,-183.70104796,0.00026,2]
[312129029,1705661443623,-183.70104796,0.00026,2]
[312129030,1705661443645,-183.70104796,0.00026,2]
[312129031,1705661443659,-183.70104796,0.00026,2]
[312129032,1705661443675,-183.70104796,0.00026,2]
[312129033,1705661443687,-183.70104796,0.00026,2]
[312129034,1705661443697,-183.70104796,0.00026,2]
[312129038,1705661443926,-183.70104796,0.00026,2]
[312129039,1705661443939,-183.70104796,0.00026,2]
[312129040,1705661443951,-183.70104796,0.00026,2]
[312129041,1705661443965,-183.70104796,0.00026,2]
[312129042,1705661443977,-183.70104796,0.00026,2]
[312129043,1705661443989,-183.70104796,0.00026,2]
[312129044,1705661444000,-183.70104796,0.00026,2]
[312129045,1705661444011,-159.25,0.00026202,2]
[312129046,1705661444028,-353.25,0.00026352,2]
[312129047,1705661444039,-8607.60014572,0.000264,2]
[312129048,1705661444051,-400.0,0.0002657,2]
[312129049,1705661444068,-20762.24,0.00026575,2]
[312129050,1705661444081,-500.0,0.00026603,2]
[312129051,1705661444094,-1000.0,0.00026738,3]
[312129052,1705661444106,-1000.0,0.00026738,3]
[312129053,1705661444118,-1000.0,0.00026738,3]
[312129054,1705661444346,-1000.0,0.00026738,3]
[312129055,1705661444358,-1000.0,0.00026738,3]
[312129056,1705661444370,-1051.6858036,0.00026738,3]
[312129057,1705661444381,-1000.0,0.00026738,3]
[312129058,1705661444392,-412.05467402,0.00026738,3]
[312129059,1705661445094,-2838.24606635,0.00026738,3]
[312129060,1705661445107,-1000.0,0.00026738,3]
[312129061,1705661445120,-566.2525652,0.00026738,3]
[312129062,1705661445141,-1000.0,0.00026738,3]
[312129063,1705661445154,-150.94599232,0.00026738,3]
[312129064,1705661445167,-150.94599231,0.00026738,3]
[312129065,1705661445179,-509.43533063,0.00026738,3]
[312129066,1705661445190,-1000.0,0.00026738,3]
[312129067,1705661445205,-1000.0,0.00026738,3]
[312129068,1705661445219,-1000.0,0.00026738,3]
[312129069,1705661445235,-4080.1295984,0.00026738,3]
[312129070,1705661445249,-2355.3256011,0.00026738,3]
[312129071,1705661445262,-1000.0,0.00026738,3]
[312129072,1705661445273,-1000.0,0.00026738,3]
[312129073,1705661445285,-2365.56495907,0.00026738,3]
[312129074,1705661445295,-1000.0,0.00026738,3]
[312129075,1705661445311,-209.48374726,0.00026738,3]
[312129076,1705661445577,-1588.58720658,0.00026738,3]
[312129077,1705661445590,-2412.85364783,0.00026738,3]
[312129078,1705661445602,-594.38209609,0.00026738,3]
[312129079,1705661445613,-1000.0,0.00026738,3]
[312129080,1705661445632,-154.79,0.00026833,2]
[312129081,1705661445646,-155.0,0.00026834,2]
[312129082,1705661445658,-387.69,0.00026864,2]
[312129083,1705661445887,-1840.65355859,0.000269,2]
[312129084,1705661445900,-167.0,0.0002697,2]
[312129085,1705661445913,-155.0,0.00027,2]
[312129086,1705661445925,-416.19945593,0.00027,2]
[312129087,1705661445936,-5000.0,0.00027,2]
[312129088,1705661445952,-2000.0,0.00027,2]
[312129089,1705661445965,-5039.0,0.00027,4]
[312129090,1705661445978,-6952.72031411,0.000272,2]
[312129091,1705661445999,-500.0,0.00027211,2]
[312129092,1705661446012,-353.25,0.00027331,2]
[312129093,1705661446024,-200.0,0.00027397,5]
[312129095,1705661446034,-1000.0,0.00027397,2]
[312129096,1705661446045,-155.0,0.00027397,2]
[312129097,1705661446059,-153.727858,0.00027397,7]
[312129098,1705661446071,-200.0,0.00027397,2]
[312129099,1705661446084,-153.73,0.00027397,2]
[312129100,1705661446095,-161.75,0.00027397,2]
[312129101,1705661446110,-155.98,0.00027397,2]
[312129102,1705661446122,-159.91,0.00027397,2]
[312129103,1705661446135,-183.67,0.00027397,2]
[312129105,1705661446149,-157.04,0.00027397,2]
[312129106,1705661446165,-150.01,0.00027397,2]
[312129107,1705661446177,-159.85,0.00027397,2]
[312129108,1705661446191,-157.22,0.00027397,2]
[312129109,1705661446202,-1164.64210046,0.000274,2]
[312129110,1705661446218,-7885.0,0.000274,2]
[312129111,1705661446231,-154.57593043,0.000274,2]
[312129112,1705661446246,-500.0,0.00027507,7]
[312129113,1705661446257,-612.31,0.0002752,2]
[312129114,1705661446269,-803.73209213,0.00027614,3]
[312129115,1705661446283,-150.01,0.00027753,2]
[312129116,1705661446295,-55555.0,0.00027899,2]
[312129117,1705661446306,-1840.65355859,0.000279,2]
[312129118,1705661446338,-204.0,0.00027914,12]
[312129119,1705661446355,-200.0,0.00027945,5]
[312129120,1705661446367,-814.736,0.00027994,2]
[312129122,1705661446383,-1030.469,0.00027994,2]
[312129123,1705661446396,-150.0,0.00027994,2]
[312129124,1705661446407,-559.443,0.00027994,2]
[312129125,1705661446418,-724.36732043,0.00027999,2]
[312129126,1705661446439,-500.0,0.00027999,2]
[312129127,1705661446453,-724.36732043,0.00027999,2]
[312129128,1705661446465,-724.36732043,0.00027999,2]
[312129129,1705661446484,-500.0,0.00027999,2]
[312129130,1705661446497,-724.36732043,0.00027999,2]
[312129131,1705661446509,-255.76156585,0.00027999,2]
[312129132,1705661446520,-724.36732043,0.00027999,2]
[312129133,1705661446534,-724.36732043,0.00027999,2]
[312129134,1705661446546,-477.75210861,0.00027999,2]
[312129135,1705661446558,-724.36732043,0.00027999,2]
[312129136,1705661446570,-724.36732043,0.00027999,2]
[312129137,1705661446581,-724.36732043,0.00027999,2]
[312129138,1705661446595,-724.36732043,0.00027999,2]
[312129139,1705661446609,-724.36732043,0.00027999,2]
[312129140,1705661446621,-724.36732043,0.00027999,2]
[312129141,1705661446632,-724.36732043,0.00027999,2]
[312129142,1705661446652,-724.36732043,0.00027999,2]
[312129143,1705661446666,-724.36732043,0.00027999,2]
[312129144,1705661446680,-724.36732043,0.00027999,2]
[312129145,1705661446699,-724.36732043,0.00027999,2]
[312129146,1705661446712,-724.36732043,0.00027999,2]
[312129147,1705661446724,-724.36732043,0.00027999,2]
[312129148,1705661446737,-724.36732043,0.00027999,2]
[312129149,1705661446750,-724.36732043,0.00027999,2]
[312129150,1705661446764,-724.36732043,0.00027999,2]
[312129151,1705661446778,-724.36732043,0.00027999,2]
[312129152,1705661446791,-203.09146154,0.00028,2]
[312129153,1705661446805,-688.92857397,0.00028,2]
[312129154,1705661446818,-929.34436591,0.00028,2]
[312129155,1705661446831,-22221.99970979,0.00028,2]
[312129156,1705661446843,-2000.0,0.00028,2]
[312129157,1705661446855,-700.0,0.00028,3]
[312129158,1705661446872,-5087.0,0.00028,4]
[312129159,1705661446886,-150.01,0.0002811,2]
[312129160,1705661446898,-161.12,0.0002813,2]
[312129161,1705661446914,-167.0,0.00028307,2]
[312129162,1705661446927,-167.0,0.00028307,2]
[312129163,1705661446939,-353.25,0.00028309,2]
[312129164,1705661446950,-1000.0,0.00028325,2]
[312129165,1705661446962,-322.90099813,0.00028325,2]
[312129166,1705661446979,-500.0,0.00028411,7]
[312129167,1705661446992,-150.01,0.00028466,2]
[312129168,1705661447004,-200.0,0.00028493,5]
[312129169,1705661447016,-157.22,0.00028539,2]
[312129170,1705661447029,-157.78,0.00028644,2]
[312129171,1705661447041,-205.0,0.0002876,2]
[312129172,1705661447066,-1000.0,0.00028767,2]
[312129173,1705661447107,-1000.0,0.00028767,2]
[312129174,1705661447134,-1000.0,0.00028767,2]
[312129175,1705661447161,-1000.0,0.00028767,2]
[312129176,1705661447184,-1000.0,0.00028767,2]
[312129177,1705661447205,-1000.0,0.00028767,2]
[312129178,1705661447233,-1000.0,0.00028767,2]
[312129179,1705661447255,-1000.0,0.00028767,2]
[312129180,1705661447277,-1000.0,0.00028767,2]
[312129181,1705661447304,-1000.0,0.00028767,2]
[312129182,1705661447329,-1000.0,0.00028767,2]
[312129183,1705661447357,-1000.0,0.00028767,2]
[312129184,1705661447378,-1000.0,0.00028767,2]
[312129185,1705661447395,-803.0308759,0.00028767,2]
[312129186,1705661447646,-155.0,0.00028767,2]
[312129187,1705661447674,-156.37,0.00028781,2]
[312129188,1705661447692,-7885.0,0.000288,2]
[312129189,1705661447716,-150.01,0.00028822,2]
[312129190,1705661447754,-1840.65355859,0.000289,2]
[312129191,1705661447788,-314.29279683,0.00029,2]
[312129192,1705661447812,-2000.0,0.00029,2]
[312129193,1705661447835,-325.20026508,0.00029,2]
[312129194,1705661447860,-325.20026508,0.00029,2]
[312129195,1705661447880,-325.20026508,0.00029,2]
[312129196,1705661447904,-325.20026508,0.00029,2]
[312129197,1705661447925,-325.20026508,0.00029,2]
[312129198,1705661447950,-325.20026508,0.00029,2]
[312129199,1705661447973,-325.20026508,0.00029,2]
[312129200,1705661448003,-325.20026508,0.00029,2]
[312129201,1705661448025,-325.20026508,0.00029,2]
[312129202,1705661448045,-325.20026508,0.00029,2]
[312129203,1705661448069,-325.20026508,0.00029,2]
[312129204,1705661448098,-325.20026508,0.00029,2]
[312129205,1705661448124,-325.20026508,0.00029,2]
[312129206,1705661448150,-325.20026508,0.00029,2]
[312129207,1705661448173,-325.20026508,0.00029,2]
[312129208,1705661448194,-325.20026508,0.00029,2]
[312129209,1705661448219,-325.20026508,0.00029,2]
[312129210,1705661448242,-325.20026508,0.00029,2]
[312129211,1705661448263,-325.20026508,0.00029,2]
[312129212,1705661448285,-325.20026508,0.00029,2]
[312129213,1705661448305,-325.20026508,0.00029,2]
[312129214,1705661448327,-325.20026508,0.00029,2]
[312129215,1705661448350,-325.20026508,0.00029,2]
[312129216,1705661448379,-325.20026508,0.00029,2]
[312129217,1705661448399,-325.20026508,0.00029,2]
[312129218,1705661448419,-325.20026508,0.00029,2]
[312129219,1705661448439,-325.20026508,0.00029,2]
[312129220,1705661448459,-325.20026508,0.00029,2]
[312129221,1705661448485,-325.20026508,0.00029,2]
[312129222,1705661448507,-325.20026508,0.00029,2]
[312129223,1705661448733,-325.20026508,0.00029,2]
[312129224,1705661448755,-325.20026508,0.00029,2]
[312129225,1705661448776,-325.20026508,0.00029,2]
[312129226,1705661448795,-325.20026508,0.00029,2]
[312129227,1705661448817,-325.20026508,0.00029,2]
[312129228,1705661448836,-325.20026508,0.00029,2]
[312129229,1705661448861,-325.20026508,0.00029,2]
[312129230,1705661448884,-325.20026508,0.00029,2]
[312129231,1705661449123,-325.20026508,0.00029,2]
[312129232,1705661449146,-325.20026508,0.00029,2]
[312129233,1705661449178,-325.20026508,0.00029,2]
[312129234,1705661449196,-325.20026508,0.00029,2]
[312129235,1705661449219,-325.20026508,0.00029,2]
[312129236,1705661449238,-325.20026508,0.00029,2]
[312129237,1705661449256,-325.20026508,0.00029,2]
[312129238,1705661449284,-325.20026508,0.00029,2]
[312129239,1705661449303,-325.20026508,0.00029,2]
[312129240,1705661449321,-325.20026508,0.00029,2]
[312129241,1705661449341,-325.20026508,0.00029,2]
[312129242,1705661449361,-325.20026508,0.00029,2]
[312129243,1705661449387,-354.44429429,0.00029041,5]
[312129244,1705661449407,-803.73209213,0.00029186,4]
[312129245,1705661449428,-353.25,0.00029288,2]
[312129246,1705661449450,-500.0,0.00029315,7]
[312129247,1705661449470,-157.04,0.00029416,2]
[312129248,1705661449495,-155.0,0.000295,3]
[312129249,1705661449516,-387.69,0.0002955,2]
[312129250,1705661449538,-154.57593043,0.0002965,2]
[312129251,1705661449559,-157.22,0.0002968,2]
[312129252,1705661449577,-205.0,0.0002969,2]
[312129253,1705661449600,-150.0,0.000297,2]
[312129254,1705661449621,-562.98,0.000297,2]
[312129255,1705661449643,-164.5,0.000297,2]
[312129256,1705661449665,-150.0,0.000297,2]
[312129257,1705661449686,-150.0,0.000297,2]
[312129258,1705661449711,-408.64,0.000297,2]
[312129259,1705661449728,-150.0,0.000297,2]
[312129260,1705661449743,-408.64,0.000297,2]
[312129261,1705661449756,-150.0,0.000297,2]
[312129262,1705661449769,-153.76,0.000297,2]
[312129263,1705661449782,-345.08,0.000297,2]
[312129264,1705661449794,-150.0,0.000297,2]
[312129265,1705661449809,-150.0,0.000297,2]
[312129266,1705661450348,-150.0,0.000297,2]
[312129267,1705661450402,-588.78,0.000297,2]
[312129268,1705661450418,-150.0,0.000297,2]
[312129269,1705661450430,-294.39,0.000297,2]
[312129270,1705661450453,-294.39,0.000297,2]
[312129271,1705661450465,-294.39,0.000297,2]
[312129272,1705661450478,-294.39,0.000297,2]
[312129273,1705661450489,-594.68,0.000297,2]
[312129274,1705661450510,-731.00118582,0.000298,2]
[312129275,1705661450527,-175.53477605,0.000298,2]
[312129276,1705661450538,-150.0,0.00029816,2]
[312129277,1705661450552,-155.0,0.00029816,2]
[312129278,1705661450564,-200.0,0.00029816,2]
[312129279,1705661450577,-508.90507024,0.00029816,2]
[312129280,1705661450587,-2000.0,0.00029816,2]
[312129281,1705661450598,-200.0,0.00029816,2]
[312129282,1705661450613,-1840.65355859,0.000299,2]
[312129283,1705661450627,-200.0,0.00029966,2]
[312129284,1705661450638,-4008.29333289,0.00029966,2]
[312129285,1705661450649,-400.0,0.0002997,2]
[312129286,1705661450661,-44839.95328554,0.0002998,2]
[312129287,1705661451681,-183.70104796,0.00026,2]
[312129288,1705661451693,-183.70104796,0.00026,2]
[312129289,1705661451704,-183.70104796,0.00026,2]
[312129290,1705661451714,-183.70104796,0.00026,2]
[312129291,1705661451726,-183.70104796,0.00026,2]
[312129292,1705661451742,-183.70104796,0.00026,2]
[312129293,1705661451754,-183.70104796,0.00026,2]
[312129294,1705661451764,-183.70104796,0.00026,2]
[312129295,1705661451784,-183.70104796,0.00026,2]
[312129296,1705661451798,-183.70104796,0.00026,2]
[312129297,1705661451809,-183.70104796,0.00026,2]
[312129298,1705661451820,-183.70104796,0.00026,2]
[312129299,1705661451833,-724.36732043,0.00027999,2]
[312129300,1705661451850,-724.36732043,0.00027999,2]
[312129301,1705661451862,-39076.17003268,0.0002998,2]
[312129302,1705661452092,-1020.20809265,0.0002998,2]
[312129303,1705661452108,-1905.18170778,0.0002998,2]
[312129304,1705661452615,-190.67,0.000223,2]
[312129305,1705661452633,-6752.4806905,0.0002998,2]
[312129306,1705661453060,-19220.0963717,0.0002998,2]
[312129307,1705661453086,-6053.06602678,0.0002998,2]
[312129308,1705661453198,-724.2477035,0.0002998,2]
[312129309,1705661453303,-588.40659903,0.0002998,2]
[312129310,1705661453326,-5744.77965934,0.0002998,2]
[312129311,1705661453341,-4272.69298,0.0002998,2]
[312129312,1705661453354,-514.59376721,0.0002998,2]
[312129313,1705661454531,-2966.995,0.00021396,2]
[312129314,1705661454543,-17053.95120973,0.0002998,2]
[312129315,1705661454784,-1096.32650227,0.0002998,2]
[312129316,1705661454796,-52.66436972,0.00029998,2]
[312129317,1705661454811,-947.33563028,0.00029998,2]
[312129318,1705661454830,-13477.66215741,0.0003,2]
[312129319,1705661454847,-902.53115071,0.0003,2]
[312129320,1705661454861,-36315.78772855,0.0003,2]